[Event "*** Titled Tuesday Blitz"]
[Site "Chess.com"]
[Date "2021.03.16"]
[Round "8"]
[White "IMAghasiyevKamal"]
[Black "dpopadic"]
[Result "1/2-1/2"]
[WhiteElo "2502"]
[BlackElo "2351"]
[TimeControl "180+1"]
[EndTime "11:23:06 PDT"]
[Termination "Game drawn by repetition"]

1. d4 {[%clk 0:03:00.9]} 1... Nf6 {[%clk 0:02:59.5]} 2. c4 {[%clk 0:02:54.5]}
2... g6 {[%clk 0:02:59.4]} 3. Nc3 {[%clk 0:02:52.8]} 3... Bg7 {[%clk 0:02:59.9]}
4. e4 {[%clk 0:02:52.4]} 4... d6 {[%clk 0:03:00.4]} 5. Be2 {[%clk 0:02:51.8]}
5... O-O {[%clk 0:03:01]} 6. Be3 {[%clk 0:02:40.3]} 6... e5 {[%clk 0:02:55.6]}
7. d5 {[%clk 0:02:37.7]} 7... a5 {[%clk 0:02:55.6]} 8. g4 {[%clk 0:02:36.7]}
8... Na6 {[%clk 0:02:55.7]} 9. h4 {[%clk 0:02:35.3]} 9... Re8 {[%clk 0:02:53.5]}
10. g5 {[%clk 0:02:34.2]} 10... Nd7 {[%clk 0:02:53.1]} 11. h5 {[%clk 0:02:34.3]}
11... Ndc5 {[%clk 0:02:52.5]} 12. f3 {[%clk 0:02:28.4]} 12... Bd7 {[%clk
0:02:49.8]} 13. Qd2 {[%clk 0:02:19.2]} 13... c6 {[%clk 0:02:49.3]} 14. Bf1
{[%clk 0:02:14]} 14... cxd5 {[%clk 0:02:49]} 15. Nxd5 {[%clk 0:02:13.8]} 15...
Be6 {[%clk 0:02:43.2]} 16. Nf6+ {[%clk 0:02:10.1]} 16... Bxf6 {[%clk 0:02:41.3]}
17. gxf6 {[%clk 0:02:10.3]} 17... Qxf6 {[%clk 0:02:41.1]} 18. Bg5 {[%clk
0:02:10.3]} 18... Qg7 {[%clk 0:02:39.3]} 19. Bh6 {[%clk 0:02:01.3]} 19... Qf6
{[%clk 0:02:36]} 20. Bg5 {[%clk 0:02:00.7]} 20... Qg7 {[%clk 0:02:34]} 21. Bh6
{[%clk 0:01:59.9]} 21... Qf6 {[%clk 0:02:33.6]} 22. Bg5 {[%clk 0:02:00.1]}
1/2-1/2

[Event "*** Titled Tuesday Blitz"]
[Site "Chess.com"]
[Date "2021.03.16"]
[Round "8"]
[White "nrvisakh"]
[Black "nurgyulsalimova"]
[Result "0-1"]
[WhiteElo "2782"]
[BlackElo "2649"]
[TimeControl "180+1"]
[EndTime "11:23:15 PDT"]
[Termination "nurgyulsalimova won by resignation"]

1. e4 {[%clk 0:02:58.4]} 1... c6 {[%clk 0:02:57]} 2. Nc3 {[%clk 0:02:54.1]} 2...
d5 {[%clk 0:02:54.6]} 3. Nf3 {[%clk 0:02:55]} 3... dxe4 {[%clk 0:02:54]} 4. Nxe4
{[%clk 0:02:54.5]} 4... Nf6 {[%clk 0:02:54.6]} 5. Nxf6+ {[%clk 0:02:52.7]} 5...
exf6 {[%clk 0:02:54.7]} 6. d4 {[%clk 0:02:42]} 6... Bd6 {[%clk 0:02:53.9]} 7.
Bd3 {[%clk 0:02:40.8]} 7... O-O {[%clk 0:02:50.6]} 8. O-O {[%clk 0:02:34.2]}
8... Re8 {[%clk 0:02:50.7]} 9. h3 {[%clk 0:02:34.2]} 9... Nd7 {[%clk 0:02:50.8]}
10. c4 {[%clk 0:02:31.6]} 10... Nf8 {[%clk 0:02:50.9]} 11. Re1 {[%clk 0:02:29]}
11... Rxe1+ {[%clk 0:02:40.5]} 12. Qxe1 {[%clk 0:02:28.8]} 12... Be6 {[%clk
0:02:40.8]} 13. b3 {[%clk 0:02:22.4]} 13... Qd7 {[%clk 0:02:37.9]} 14. Be3
{[%clk 0:02:21.6]} 14... Re8 {[%clk 0:02:36.4]} 15. Rd1 {[%clk 0:02:21.6]} 15...
Bxh3 {[%clk 0:02:22.4]} 16. gxh3 {[%clk 0:02:16.3]} 16... Qxh3 {[%clk
0:02:23.3]} 17. Be2 {[%clk 0:02:11.1]} 17... Re4 {[%clk 0:02:10.1]} 0-1

[Event "*** Titled Tuesday Blitz"]
[Site "Chess.com"]
[Date "2021.03.16"]
[Round "8"]
[White "PavelShkapenko"]
[Black "UCantHandleDenker"]
[Result "1-0"]
[WhiteElo "2701"]
[BlackElo "2511"]
[TimeControl "180+1"]
[EndTime "11:23:57 PDT"]
[Termination "PavelShkapenko won by resignation"]

1. e4 {[%clk 0:03:00.9]} 1... c5 {[%clk 0:02:58.8]} 2. c3 {[%clk 0:02:45.5]}
2... d6 {[%clk 0:02:58.5]} 3. d4 {[%clk 0:02:45.2]} 3... Nf6 {[%clk 0:02:59.1]}
4. Bd3 {[%clk 0:02:45.1]} 4... g6 {[%clk 0:02:58.7]} 5. dxc5 {[%clk 0:02:45.3]}
5... dxc5 {[%clk 0:02:53.7]} 6. e5 {[%clk 0:02:45.2]} 6... Ng4 {[%clk
0:02:48.7]} 7. Bb5+ {[%clk 0:02:32.2]} 7... Bd7 {[%clk 0:02:35.3]} 8. e6 {[%clk
0:02:31.7]} 8... Bxb5 {[%clk 0:02:34.8]} 9. exf7+ {[%clk 0:02:31.4]} 9... Kxf7
{[%clk 0:02:30.7]} 10. Qxd8 {[%clk 0:02:31.1]} 10... Bg7 {[%clk 0:01:19.3]} 11.
Qd5+ {[%clk 0:02:23.3]} 11... e6 {[%clk 0:01:09.1]} 12. Qxb7+ {[%clk 0:02:22.5]}
12... Kf6 {[%clk 0:01:02]} 13. Qxb5 {[%clk 0:02:19.7]} 1-0

[Event "*** Titled Tuesday Blitz"]
[Site "Chess.com"]
[Date "2021.03.16"]
[Round "8"]
[White "vovachesss"]
[Black "NateSolon"]
[Result "1-0"]
[WhiteElo "2750"]
[BlackElo "2563"]
[TimeControl "180+1"]
[EndTime "11:24:18 PDT"]
[Termination "vovachesss won by resignation"]

1. e4 {[%clk 0:03:00.9]} 1... c5 {[%clk 0:02:30]} 2. d4 {[%clk 0:02:59.1]} 2...
cxd4 {[%clk 0:02:29.4]} 3. c3 {[%clk 0:02:58.9]} 3... dxc3 {[%clk 0:02:29.7]} 4.
Nxc3 {[%clk 0:02:58.8]} 4... Nc6 {[%clk 0:02:29.7]} 5. Nf3 {[%clk 0:02:57.9]}
5... e6 {[%clk 0:02:29.9]} 6. Bc4 {[%clk 0:02:55.9]} 6... Bb4 {[%clk 0:02:29.7]}
7. O-O {[%clk 0:02:55.6]} 7... Nge7 {[%clk 0:02:29.7]} 8. Bg5 {[%clk 0:02:54.8]}
8... O-O {[%clk 0:02:28.1]} 9. e5 {[%clk 0:02:52.8]} 9... h6 {[%clk 0:02:20.7]}
10. Bh4 {[%clk 0:02:52.8]} 10... Bxc3 {[%clk 0:02:16.2]} 11. bxc3 {[%clk
0:02:52.7]} 11... Qc7 {[%clk 0:02:16.1]} 12. Bd3 {[%clk 0:02:42.6]} 12... Ng6
{[%clk 0:02:14.9]} 13. Bxg6 {[%clk 0:02:40.2]} 13... fxg6 {[%clk 0:02:15.8]} 14.
Bg3 {[%clk 0:02:34.6]} 14... b6 {[%clk 0:02:15.1]} 15. Qd3 {[%clk 0:02:34.8]}
15... Bb7 {[%clk 0:02:00.1]} 16. Rfd1 {[%clk 0:02:34.3]} 16... Rf7 {[%clk
0:01:54.1]} 17. Qxg6 {[%clk 0:02:33.9]} 17... Ne7 {[%clk 0:01:54.2]} 18. Qg4
{[%clk 0:02:12.2]} 18... Bxf3 {[%clk 0:01:50.5]} 19. gxf3 {[%clk 0:02:12.4]}
19... Raf8 {[%clk 0:01:42.7]} 20. Rd3 {[%clk 0:02:00.6]} 20... Rc8 {[%clk
0:01:36.4]} 21. Rad1 {[%clk 0:01:59.5]} 21... Nd5 {[%clk 0:01:33.1]} 22. Rxd5
{[%clk 0:01:53.5]} 22... exd5 {[%clk 0:01:34]} 23. e6 {[%clk 0:01:54.1]} 23...
dxe6 {[%clk 0:01:30.3]} 24. Bxc7 {[%clk 0:01:53.6]} 1-0

[Event "*** Titled Tuesday Blitz"]
[Site "Chess.com"]
[Date "2021.03.16"]
[Round "8"]
[White "elohunter1999"]
[Black "northridgehawk"]
[Result "1-0"]
[WhiteElo "2592"]
[BlackElo "2345"]
[TimeControl "180+1"]
[EndTime "11:24:21 PDT"]
[Termination "elohunter1999 won by resignation"]

1. d4 {[%clk 0:03:00.9]} 1... Nf6 {[%clk 0:02:51.7]} 2. c4 {[%clk 0:02:59.1]}
2... g6 {[%clk 0:02:51.5]} 3. Nc3 {[%clk 0:02:55.2]} 3... d5 {[%clk 0:02:51.9]}
4. cxd5 {[%clk 0:02:51.4]} 4... Nxd5 {[%clk 0:02:52.8]} 5. e4 {[%clk 0:02:51.3]}
5... Nxc3 {[%clk 0:02:52.4]} 6. bxc3 {[%clk 0:02:52.2]} 6... Bg7 {[%clk
0:02:52.5]} 7. Nf3 {[%clk 0:02:52.2]} 7... c5 {[%clk 0:02:52.6]} 8. Rb1 {[%clk
0:02:52.1]} 8... O-O {[%clk 0:02:49.5]} 9. Be2 {[%clk 0:02:51.3]} 9... Nc6
{[%clk 0:02:41.6]} 10. d5 {[%clk 0:02:44.1]} 10... Ne5 {[%clk 0:02:37.7]} 11.
Nxe5 {[%clk 0:02:43.8]} 11... Bxe5 {[%clk 0:02:38.6]} 12. Qd2 {[%clk 0:02:43.4]}
12... Bc7 {[%clk 0:02:33.6]} 13. O-O {[%clk 0:02:25.2]} 13... e6 {[%clk
0:02:23.1]} 14. c4 {[%clk 0:02:24.5]} 14... exd5 {[%clk 0:02:21.4]} 15. cxd5
{[%clk 0:02:22.8]} 15... b6 {[%clk 0:02:19.7]} 16. Bb2 {[%clk 0:02:18.6]} 16...
Qh4 {[%clk 0:01:58.5]} 17. d6 {[%clk 0:02:16.7]} 17... Rd8 {[%clk 0:01:57.2]}
18. Qc3 {[%clk 0:02:14.2]} 18... f6 {[%clk 0:01:49.2]} 19. Bc4+ {[%clk
0:02:04.3]} 19... Kg7 {[%clk 0:01:46.1]} 20. dxc7 {[%clk 0:02:04.4]} 20... Rd4
{[%clk 0:01:44.5]} 21. Rbd1 {[%clk 0:01:59.5]} 1-0

[Event "*** Titled Tuesday Blitz"]
[Site "Chess.com"]
[Date "2021.03.16"]
[Round "8"]
[White "GoltsevDmitry2000"]
[Black "gurelediz"]
[Result "0-1"]
[WhiteElo "2794"]
[BlackElo "2676"]
[TimeControl "180+1"]
[EndTime "11:24:22 PDT"]
[Termination "gurelediz won by resignation"]

1. e3 {[%clk 0:02:59.6]} 1... Nf6 {[%clk 0:02:59.4]} 2. d4 {[%clk 0:02:59.2]}
2... g6 {[%clk 0:03:00.3]} 3. b3 {[%clk 0:02:59.3]} 3... Bg7 {[%clk 0:03:00.9]}
4. Bb2 {[%clk 0:03:00.2]} 4... O-O {[%clk 0:03:01.6]} 5. Nd2 {[%clk 0:03:00.5]}
5... c5 {[%clk 0:03:01.1]} 6. Ngf3 {[%clk 0:03:00.9]} 6... cxd4 {[%clk 0:03:02]}
7. Bxd4 {[%clk 0:03:00.1]} 7... Nc6 {[%clk 0:03:01.6]} 8. Bb2 {[%clk 0:03:00.6]}
8... Re8 {[%clk 0:03:02.2]} 9. Be2 {[%clk 0:03:00.8]} 9... d5 {[%clk 0:03:01.4]}
10. O-O {[%clk 0:03:01.1]} 10... e5 {[%clk 0:03:02.1]} 11. c4 {[%clk 0:03:01.2]}
11... d4 {[%clk 0:03:00.7]} 12. exd4 {[%clk 0:03:01]} 12... exd4 {[%clk
0:03:01.6]} 13. Re1 {[%clk 0:03:01.4]} 13... d3 {[%clk 0:03:00.2]} 14. Bf1
{[%clk 0:03:01.7]} 14... Bf5 {[%clk 0:03:00.7]} 15. Rxe8+ {[%clk 0:02:58.3]}
15... Nxe8 {[%clk 0:03:01.6]} 16. Bxg7 {[%clk 0:02:57.6]} 16... Nxg7 {[%clk
0:03:02.5]} 17. h3 {[%clk 0:02:55.3]} 17... h5 {[%clk 0:02:54.3]} 18. Ne1 {[%clk
0:02:54.6]} 18... Qd6 {[%clk 0:02:48.2]} 19. g4 {[%clk 0:02:53.7]} 19... hxg4
{[%clk 0:02:49.1]} 20. hxg4 {[%clk 0:02:54.6]} 20... Be6 {[%clk 0:02:49.8]} 21.
Nxd3 {[%clk 0:02:46.9]} 21... Rd8 {[%clk 0:02:48.9]} 22. Ne4 {[%clk 0:02:43.3]}
22... Qd4 {[%clk 0:02:45.5]} 23. Qe1 {[%clk 0:02:36.9]} 23... Bxg4 {[%clk
0:02:44.5]} 24. Nf4 {[%clk 0:02:26]} 24... Re8 {[%clk 0:02:41.6]} 25. Bg2 {[%clk
0:02:24.7]} 25... f5 {[%clk 0:02:31.1]} 26. Nxg6 {[%clk 0:02:23.9]} 26... fxe4
{[%clk 0:02:30.1]} 27. Rc1 {[%clk 0:02:15.5]} 27... e3 {[%clk 0:02:29.6]} 28.
Bd5+ {[%clk 0:02:12.8]} 28... Kh7 {[%clk 0:02:26.5]} 29. f3 {[%clk 0:02:13.3]}
29... Kxg6 {[%clk 0:02:22.6]} 30. fxg4 {[%clk 0:02:13.5]} 30... Qxg4+ {[%clk
0:02:23.5]} 31. Bg2 {[%clk 0:02:11.2]} 31... Nd4 {[%clk 0:02:23.6]} 32. Rd1
{[%clk 0:01:27.8]} 32... Nf3+ {[%clk 0:02:23]} 0-1

[Event "*** Titled Tuesday Blitz"]
[Site "Chess.com"]
[Date "2021.03.16"]
[Round "8"]
[White "JosefineHeinemann"]
[Black "Niktlt"]
[Result "0-1"]
[WhiteElo "2630"]
[BlackElo "2517"]
[TimeControl "180+1"]
[EndTime "11:24:47 PDT"]
[Termination "Niktlt won by resignation"]

1. e4 {[%clk 0:03:00.9]} 1... e6 {[%clk 0:02:59.9]} 2. d4 {[%clk 0:03:00.2]}
2... d5 {[%clk 0:03:00.4]} 3. Nd2 {[%clk 0:03:00.7]} 3... Be7 {[%clk 0:03:00.4]}
4. e5 {[%clk 0:02:57.1]} 4... c5 {[%clk 0:03:00.3]} 5. c3 {[%clk 0:02:57.4]}
5... Nc6 {[%clk 0:03:01.2]} 6. Bd3 {[%clk 0:02:54.7]} 6... Nh6 {[%clk
0:02:50.5]} 7. Ne2 {[%clk 0:02:53.8]} 7... Nf5 {[%clk 0:02:50.2]} 8. Bxf5 {[%clk
0:02:49.4]} 8... exf5 {[%clk 0:02:50.7]} 9. O-O {[%clk 0:02:50.1]} 9... Be6
{[%clk 0:02:50.9]} 10. Nf3 {[%clk 0:02:44.9]} 10... g5 {[%clk 0:02:50.9]} 11.
dxc5 {[%clk 0:02:44.5]} 11... a5 {[%clk 0:02:44.5]} 12. Ned4 {[%clk 0:02:43.9]}
12... h6 {[%clk 0:02:44.4]} 13. Nxe6 {[%clk 0:02:43]} 13... fxe6 {[%clk
0:02:45.3]} 14. Nd4 {[%clk 0:02:43.7]} 14... Kd7 {[%clk 0:02:41.1]} 15. Nxc6
{[%clk 0:02:28.9]} 15... bxc6 {[%clk 0:02:42]} 16. b4 {[%clk 0:02:29.2]} 16...
Qc7 {[%clk 0:02:40.4]} 17. Qd4 {[%clk 0:02:26]} 17... Rhb8 {[%clk 0:02:39.2]}
18. Bd2 {[%clk 0:02:25.1]} 18... Qb7 {[%clk 0:02:39.1]} 19. a4 {[%clk
0:02:24.1]} 19... Qa6 {[%clk 0:02:37.4]} 20. Rfb1 {[%clk 0:02:21.1]} 20... Rb7
{[%clk 0:02:35.5]} 21. Be3 {[%clk 0:01:52.1]} 21... Rab8 {[%clk 0:02:33.7]} 22.
Bd2 {[%clk 0:01:48.8]} 22... h5 {[%clk 0:02:25.7]} 23. Ra2 {[%clk 0:01:39.1]}
23... g4 {[%clk 0:02:21]} 24. g3 {[%clk 0:01:37.4]} 24... h4 {[%clk 0:02:20.7]}
25. Raa1 {[%clk 0:01:24]} 25... h3 {[%clk 0:02:20.2]} 26. f3 {[%clk 0:01:23.8]}
26... Qe2 {[%clk 0:02:12.1]} 27. Qf2 {[%clk 0:01:14.7]} 27... Bxc5 {[%clk
0:02:11.9]} 0-1

[Event "*** Titled Tuesday Blitz"]
[Site "Chess.com"]
[Date "2021.03.16"]
[Round "8"]
[White "suneebaker"]
[Black "annacramling"]
[Result "1-0"]
[WhiteElo "2205"]
[BlackElo "1991"]
[TimeControl "180+1"]
[EndTime "11:24:51 PDT"]
[Termination "suneebaker won by resignation"]

1. Nf3 {[%clk 0:02:59.8]} 1... c5 {[%clk 0:02:45.7]} 2. c4 {[%clk 0:02:57.7]}
2... Nc6 {[%clk 0:02:42.2]} 3. g3 {[%clk 0:02:57.1]} 3... e5 {[%clk 0:02:42.3]}
4. d3 {[%clk 0:02:55.5]} 4... d6 {[%clk 0:02:41.5]} 5. Bg2 {[%clk 0:02:54.9]}
5... g6 {[%clk 0:02:41.6]} 6. Nc3 {[%clk 0:02:54.5]} 6... Bg7 {[%clk 0:02:42.1]}
7. O-O {[%clk 0:02:53.7]} 7... Nge7 {[%clk 0:02:42]} 8. Bd2 {[%clk 0:02:53.2]}
8... O-O {[%clk 0:02:40.2]} 9. a3 {[%clk 0:02:52.4]} 9... a5 {[%clk 0:02:39.8]}
10. e4 {[%clk 0:02:35.6]} 10... h6 {[%clk 0:02:37.2]} 11. Nd5 {[%clk 0:02:33.9]}
11... Be6 {[%clk 0:02:36.7]} 12. Rb1 {[%clk 0:02:29]} 12... Rb8 {[%clk
0:02:33.5]} 13. b4 {[%clk 0:02:26.7]} 13... axb4 {[%clk 0:02:32.9]} 14. axb4
{[%clk 0:02:26.6]} 14... b5 {[%clk 0:02:33.3]} 15. bxc5 {[%clk 0:02:17.8]} 15...
bxc4 {[%clk 0:02:18.1]} 16. cxd6 {[%clk 0:02:10.2]} 16... Qxd6 {[%clk
0:02:10.4]} 17. dxc4 {[%clk 0:02:10]} 17... Nd4 {[%clk 0:01:57.3]} 18. Rxb8
{[%clk 0:02:05.7]} 18... Rxb8 {[%clk 0:01:56.2]} 19. Nxd4 {[%clk 0:02:02.7]}
19... exd4 {[%clk 0:01:51.3]} 20. Bf4 {[%clk 0:02:02.2]} 20... Be5 {[%clk
0:01:39.4]} 21. Bxe5 {[%clk 0:01:56.6]} 21... Qxe5 {[%clk 0:01:24.3]} 22. Nxe7+
{[%clk 0:01:56.4]} 22... Kg7 {[%clk 0:01:20]} 23. Nc6 {[%clk 0:01:56.8]} 23...
Qc7 {[%clk 0:01:00.9]} 24. Nxb8 {[%clk 0:01:56.2]} 24... Qxb8 {[%clk 0:01:01.8]}
25. Qxd4+ {[%clk 0:01:55.7]} 1-0

[Event "*** Titled Tuesday Blitz"]
[Site "Chess.com"]
[Date "2021.03.16"]
[Round "8"]
[White "zverr1"]
[Black "Vincent_Vega95"]
[Result "1-0"]
[WhiteElo "2488"]
[BlackElo "2725"]
[TimeControl "180+1"]
[EndTime "11:25:23 PDT"]
[Termination "zverr1 won by resignation"]

1. d4 {[%clk 0:03:00.9]} 1... Nf6 {[%clk 0:03:00]} 2. c4 {[%clk 0:02:57.8]} 2...
g6 {[%clk 0:03:00.3]} 3. Nc3 {[%clk 0:02:58.3]} 3... Bg7 {[%clk 0:03:01]} 4. e4
{[%clk 0:02:58.4]} 4... O-O {[%clk 0:03:01.9]} 5. h3 {[%clk 0:02:59.3]} 5... d6
{[%clk 0:03:02.2]} 6. Be3 {[%clk 0:02:59.9]} 6... e5 {[%clk 0:03:02.4]} 7. d5
{[%clk 0:03:00.1]} 7... a5 {[%clk 0:03:02.9]} 8. Nge2 {[%clk 0:03:00.3]} 8... h5
{[%clk 0:02:57.3]} 9. Nc1 {[%clk 0:02:57]} 9... Na6 {[%clk 0:02:55]} 10. Nd3
{[%clk 0:02:56.6]} 10... b6 {[%clk 0:02:33]} 11. Qd2 {[%clk 0:02:54.5]} 11...
Nc5 {[%clk 0:02:32]} 12. Nxc5 {[%clk 0:02:53.3]} 12... bxc5 {[%clk 0:02:32.9]}
13. Bh6 {[%clk 0:02:53.6]} 13... Nh7 {[%clk 0:02:26.9]} 14. Bxg7 {[%clk
0:02:52.9]} 14... Kxg7 {[%clk 0:02:27.8]} 15. Nb5 {[%clk 0:02:50.5]} 15... Bd7
{[%clk 0:02:27]} 16. Bd3 {[%clk 0:02:47.4]} 16... Bxb5 {[%clk 0:02:24.7]} 17.
cxb5 {[%clk 0:02:48.3]} 17... f5 {[%clk 0:02:20.1]} 18. exf5 {[%clk 0:02:44.3]}
18... gxf5 {[%clk 0:02:21]} 19. O-O-O {[%clk 0:02:39.3]} 19... e4 {[%clk
0:02:05.9]} 20. Be2 {[%clk 0:02:38.1]} 20... h4 {[%clk 0:02:03.7]} 21. a4 {[%clk
0:02:34.6]} 21... Qg5 {[%clk 0:02:02.9]} 22. f4 {[%clk 0:02:31.3]} 22... Qf6
{[%clk 0:01:50.6]} 23. g4 {[%clk 0:02:29.2]} 23... hxg3 {[%clk 0:01:50.3]} 24.
Rhg1 {[%clk 0:02:28]} 24... Kh8 {[%clk 0:01:50.2]} 25. Rxg3 {[%clk 0:02:26.9]}
25... Rg8 {[%clk 0:01:50.8]} 26. Rdg1 {[%clk 0:02:26.3]} 26... Qd4 {[%clk
0:01:39.4]} 27. Rxg8+ {[%clk 0:02:17.2]} 27... Rxg8 {[%clk 0:01:38.6]} 28. Rxg8+
{[%clk 0:02:16.8]} 28... Kxg8 {[%clk 0:01:39.5]} 29. Qxd4 {[%clk 0:02:15.9]}
29... cxd4 {[%clk 0:01:39.4]} 30. b4 {[%clk 0:02:16.8]} 30... d3 {[%clk
0:01:34.9]} 31. bxa5 {[%clk 0:01:58.6]} 31... dxe2 {[%clk 0:01:35]} 32. Kd2
{[%clk 0:01:59.2]} 32... Nf6 {[%clk 0:01:25.6]} 33. a6 {[%clk 0:01:59]} 33...
Nxd5 {[%clk 0:01:24.9]} 34. a5 {[%clk 0:01:59.7]} 34... e3+ {[%clk 0:01:15.3]}
35. Ke1 {[%clk 0:02:00]} 1-0

[Event "*** Titled Tuesday Blitz"]
[Site "Chess.com"]
[Date "2021.03.16"]
[Round "8"]
[White "GigaQuparadze"]
[Black "Supernotar"]
[Result "1-0"]
[WhiteElo "2940"]
[BlackElo "2718"]
[TimeControl "180+1"]
[EndTime "11:25:28 PDT"]
[Termination "GigaQuparadze won by resignation"]

1. e4 {[%clk 0:03:00.9]} 1... c6 {[%clk 0:03:00.2]} 2. d4 {[%clk 0:03:00.6]}
2... d5 {[%clk 0:03:01.1]} 3. Nc3 {[%clk 0:03:01.5]} 3... dxe4 {[%clk
0:03:00.7]} 4. Nxe4 {[%clk 0:03:02.4]} 4... Bf5 {[%clk 0:03:00.8]} 5. Ng3 {[%clk
0:03:02.4]} 5... Bg6 {[%clk 0:03:01.1]} 6. h4 {[%clk 0:03:03]} 6... h6 {[%clk
0:03:01.2]} 7. Nf3 {[%clk 0:03:03.5]} 7... Nd7 {[%clk 0:03:00.8]} 8. h5 {[%clk
0:03:03.4]} 8... Bh7 {[%clk 0:03:00.5]} 9. Bd3 {[%clk 0:03:04.3]} 9... Bxd3
{[%clk 0:03:00.6]} 10. Qxd3 {[%clk 0:03:05.2]} 10... e6 {[%clk 0:03:01.2]} 11.
Bd2 {[%clk 0:03:05.6]} 11... Ngf6 {[%clk 0:03:01.6]} 12. O-O-O {[%clk
0:03:05.8]} 12... Be7 {[%clk 0:03:02.2]} 13. Kb1 {[%clk 0:03:06]} 13... O-O
{[%clk 0:03:02.1]} 14. Bc1 {[%clk 0:03:05.8]} 14... Qb6 {[%clk 0:02:53.6]} 15.
Ne4 {[%clk 0:03:05.5]} 15... Nxe4 {[%clk 0:02:52.4]} 16. Qxe4 {[%clk 0:03:06.4]}
16... Nf6 {[%clk 0:02:52]} 17. Qe2 {[%clk 0:03:05.9]} 17... a5 {[%clk
0:02:33.7]} 18. g4 {[%clk 0:03:05.1]} 18... a4 {[%clk 0:02:26.2]} 19. g5 {[%clk
0:03:03.9]} 19... hxg5 {[%clk 0:02:25.2]} 20. h6 {[%clk 0:03:03.5]} 20... g6
{[%clk 0:02:06.3]} 21. Nxg5 {[%clk 0:03:02.5]} 21... Nh7 {[%clk 0:01:25.1]} 22.
f4 {[%clk 0:02:50.1]} 22... a3 {[%clk 0:01:17.6]} 23. b3 {[%clk 0:02:49.4]}
23... Ra5 {[%clk 0:01:10.1]} 24. Nxe6 {[%clk 0:02:45.2]} 24... fxe6 {[%clk
0:00:59.8]} 25. Qxe6+ {[%clk 0:02:46.1]} 25... Rf7 {[%clk 0:00:52.8]} 26. Qxg6+
{[%clk 0:02:45.2]} 26... Kf8 {[%clk 0:00:53]} 27. Rdg1 {[%clk 0:02:44.2]} 27...
Bb4 {[%clk 0:00:38.3]} 28. Qg8+ {[%clk 0:02:41.6]} 28... Ke7 {[%clk 0:00:38.5]}
29. Rg7 {[%clk 0:02:41.5]} 29... Rf5 {[%clk 0:00:22.9]} 30. Qxh7 {[%clk
0:02:40.7]} 30... Rf6 {[%clk 0:00:12]} 31. Rxf7+ {[%clk 0:02:37]} 31... Rxf7
{[%clk 0:00:12.1]} 32. Qxf7+ {[%clk 0:02:37.3]} 32... Kxf7 {[%clk 0:00:12.4]}
33. h7 {[%clk 0:02:37.9]} 33... Qxd4 {[%clk 0:00:06.1]} 34. h8=Q {[%clk
0:02:38.8]} 1-0

[Event "*** Titled Tuesday Blitz"]
[Site "Chess.com"]
[Date "2021.03.16"]
[Round "8"]
[White "enriquebutti"]
[Black "Sergey85Rodchenkov"]
[Result "0-1"]
[WhiteElo "2231"]
[BlackElo "2541"]
[TimeControl "180+1"]
[EndTime "11:25:35 PDT"]
[Termination "Sergey85Rodchenkov won by resignation"]

1. d4 {[%clk 0:03:00]} 1... Nf6 {[%clk 0:02:59.4]} 2. c4 {[%clk 0:02:59.1]} 2...
e6 {[%clk 0:02:59.4]} 3. Nf3 {[%clk 0:02:56.2]} 3... b6 {[%clk 0:02:59.7]} 4. e3
{[%clk 0:02:55.4]} 4... Bb7 {[%clk 0:02:59.8]} 5. Bd3 {[%clk 0:02:53.5]} 5... d5
{[%clk 0:02:59.4]} 6. O-O {[%clk 0:02:49.6]} 6... Bd6 {[%clk 0:02:59.2]} 7. b3
{[%clk 0:02:48.4]} 7... O-O {[%clk 0:02:59]} 8. Bb2 {[%clk 0:02:48]} 8... c5
{[%clk 0:02:59.1]} 9. Nc3 {[%clk 0:02:46.2]} 9... Nbd7 {[%clk 0:02:58.9]} 10.
Rc1 {[%clk 0:02:44.8]} 10... Rc8 {[%clk 0:02:58.6]} 11. cxd5 {[%clk 0:02:43.6]}
11... exd5 {[%clk 0:02:58.3]} 12. dxc5 {[%clk 0:02:42.3]} 12... bxc5 {[%clk
0:02:58]} 13. Na4 {[%clk 0:02:39.7]} 13... Qe7 {[%clk 0:02:54.9]} 14. Bf5 {[%clk
0:02:27.9]} 14... Rcd8 {[%clk 0:02:39.5]} 15. Rc2 {[%clk 0:02:07]} 15... g6
{[%clk 0:02:32.8]} 16. Bh3 {[%clk 0:01:55.4]} 16... Ne4 {[%clk 0:02:28.5]} 17.
Nd2 {[%clk 0:01:51]} 17... Ndf6 {[%clk 0:02:25.3]} 18. Nxe4 {[%clk 0:01:42.6]}
18... Nxe4 {[%clk 0:02:25.2]} 19. Nc3 {[%clk 0:01:39.8]} 19... d4 {[%clk
0:02:19.6]} 20. Nxe4 {[%clk 0:01:36.8]} 20... Bxe4 {[%clk 0:02:01.2]} 21. exd4
{[%clk 0:01:28]} 21... Bxc2 {[%clk 0:01:58.2]} 22. Qxc2 {[%clk 0:01:24.8]} 22...
cxd4 {[%clk 0:01:57.4]} 23. Qd1 {[%clk 0:01:22.1]} 23... Be5 {[%clk 0:01:54.8]}
24. Re1 {[%clk 0:01:19.3]} 24... Qf6 {[%clk 0:01:54.9]} 25. g3 {[%clk
0:01:14.5]} 25... Rfe8 {[%clk 0:01:54.4]} 26. f4 {[%clk 0:01:10.7]} 26... Bc7
{[%clk 0:01:52.2]} 27. Rxe8+ {[%clk 0:01:07.1]} 27... Rxe8 {[%clk 0:01:51.9]}
28. Bxd4 {[%clk 0:01:06.2]} 28... Bb6 {[%clk 0:01:32]} 0-1